fUSD/lending_fUSD_20260202
["ID","MTS","AMOUNT","RATE_DAILY","PERIOD"]
[404302010,1770048645650,-250.0,0.0001646,2]
[404302011,1770048645660,-500.0,0.0001646,2]
[404302012,1770048645670,-500.0,0.0001646,2]
[404302013,1770048645680,-500.0,0.0001646,2]
[404302014,1770048645689,-500.0,0.0001646,2]
[404302015,1770048645699,-500.0,0.0001646,2]
[404302016,1770048645708,-500.0,0.0001646,2]
[404302017,1770048645718,-500.0,0.0001646,2]
[404302018,1770048645728,-500.0,0.0001646,2]
[404302019,1770048645737,-209.40437684,0.0001646,2]
[404302020,1770048645747,-174.61919141,0.0001646,2]
[404302021,1770048645757,-859.80605061,0.0001646,2]
[404302022,1770048645766,-721.12765535,0.0001646,2]
[404302023,1770048645775,-276.99112213,0.0001646,2]
[404302024,1770048645845,-322.6107,0.0001646,2]
[404302025,1770048645855,-209.40437684,0.0001646,2]
[404302026,1770048645864,-200.02287089,0.00016461,2]
[404302027,1770048645874,-154.62,0.00016468,2]
[404302028,1770048645883,-150.0,0.00016473,2]
[404302029,1770048645892,-300.0,0.00016473,2]
[404302030,1770048645902,-500.0,0.00016473,2]
[404302031,1770048645912,-203.93,0.00016488,2]
[404302032,1770048645921,-5000.0,0.000165,2]
[404302033,1770048645930,-150.0,0.00016508,2]
[404302034,1770048645939,-150.0,0.00016508,2]
[404302035,1770048645948,-150.0,0.00016508,2]
[404302036,1770048645958,-500.0,0.00016508,2]
[404302037,1770048645967,-150.0,0.00016508,2]
[404302038,1770048645976,-5382.0,0.00016508,2]
[404302039,1770048645986,-250.52896875,0.00016508,2]
[404302040,1770048645996,-500.0,0.00016508,2]
[404302041,1770048646005,-150.0,0.00016508,2]
[404302042,1770048646014,-500.0,0.00016508,2]
[404302043,1770048646024,-150.0,0.00016508,2]
[404302044,1770048646032,-500.0,0.00016508,2]
[404302045,1770048646041,-500.0,0.00016508,2]
[404302046,1770048646050,-500.0,0.00016508,2]
[404302047,1770048646059,-150.0,0.00016508,2]
[404302048,1770048646068,-150.59152836,0.00016508,2]
[404302050,1770048646077,-500.0,0.00016508,2]
[404302052,1770048646087,-500.0,0.00016508,2]
[404302054,1770048646096,-500.0,0.00016508,2]
[404302056,1770048646105,-150.0,0.00016508,2]
[404302058,1770048646114,-150.0,0.00016508,2]
[404302060,1770048646123,-500.0,0.00016508,2]
[404302062,1770048646132,-150.0,0.00016508,2]
[404302065,1770048646141,-500.0,0.00016508,2]
[404302066,1770048646150,-150.0,0.00016508,2]
[404302067,1770048646159,-150.0,0.00016508,2]
[404302068,1770048646168,-500.0,0.00016508,2]
[404302069,1770048646177,-217.15233878,0.00016515,2]
[404302070,1770048646186,-1000.0,0.00016515,2]
[404302071,1770048646195,-150.0,0.00016563,2]
[404302072,1770048646205,-150.0,0.00016563,2]
[404302073,1770048646214,-150.0,0.00016563,2]
[404302074,1770048646223,-500.0,0.00016563,2]
[404302075,1770048646233,-202.17235999,0.00016563,2]
[404302076,1770048646242,-5382.0,0.00016563,2]
[404302077,1770048646251,-500.0,0.00016563,2]
[404302078,1770048646260,-150.0,0.00016563,2]
[404302079,1770048646269,-500.0,0.00016563,2]
[404302080,1770048646278,-266.13840863,0.00016563,2]
[404302081,1770048646288,-500.0,0.00016563,2]
[404302082,1770048646298,-500.0,0.00016563,2]
[404302083,1770048646307,-500.0,0.00016563,2]
[404302084,1770048646316,-150.0,0.00016563,2]
[404302085,1770048646325,-500.0,0.00016563,2]
[404302086,1770048646335,-500.0,0.00016563,2]
[404302087,1770048646344,-500.0,0.00016563,2]
[404302088,1770048646353,-150.0,0.00016563,2]
[404302089,1770048646362,-500.0,0.00016563,2]
[404302090,1770048646371,-150.0,0.00016563,2]
[404302091,1770048646381,-500.0,0.00016563,2]
[404302092,1770048646390,-500.0,0.00016563,2]
[404302093,1770048646399,-500.0,0.00016567,2]
[404302094,1770048646409,-500.0,0.00016567,2]
[404302095,1770048646418,-500.0,0.00016567,2]
[404302096,1770048646427,-440.42527963,0.00016567,2]
[404302097,1770048646437,-617.4,0.00016567,2]
[404302098,1770048646447,-617.4,0.00016567,2]
[404302099,1770048646457,-617.4,0.00016567,2]
[404302100,1770048646467,-617.4,0.00016567,2]
[404302101,1770048646477,-617.56317558,0.00016567,2]
[404302102,1770048646486,-500.0,0.00016568,2]
[404302103,1770048646496,-503.70343212,0.00016568,2]
[404302104,1770048646505,-1001.04497332,0.00016568,2]
[404302105,1770048646515,-487.41342802,0.00016568,2]
[404302106,1770048646525,-1000.0,0.00016568,2]
[404302107,1770048646534,-1500.0,0.00016568,2]
[404302108,1770048646544,-1001.51663727,0.00016568,2]
[404302109,1770048646555,-1500.0,0.00016568,2]
[404302110,1770048646564,-537.98113052,0.00016568,2]
[404302111,1770048646574,-287.5401961,0.00016568,2]
[404302112,1770048646583,-1000.0,0.00016568,2]
[404302113,1770048646594,-764.91033221,0.00016568,2]
[404302114,1770048646603,-1501.43163729,0.00016568,2]
[404302115,1770048646612,-1500.0,0.00016568,2]
[404302116,1770048646622,-1000.0,0.00016568,2]
[404302118,1770048646631,-1000.0,0.00016568,2]
[404302119,1770048646641,-408.63714551,0.00016568,2]
[404302121,1770048646650,-500.0,0.00016568,2]
[404302122,1770048646659,-1003.30357537,0.00016568,2]
[404302123,1770048646669,-500.0,0.00016568,2]
[404302124,1770048646678,-500.0,0.00016568,2]
[404302125,1770048646687,-500.0,0.00016568,2]
[404302126,1770048646696,-1500.0,0.00016568,2]
[404302127,1770048646706,-1003.56470175,0.00016568,2]
[404302128,1770048646715,-225.18697532,0.0001657,2]
[404302129,1770048646724,-289.36328116,0.00016618,2]
[404302130,1770048646734,-150.0,0.00016618,2]
[404302131,1770048646743,-291.47561802,0.00016618,2]
[404302132,1770048646752,-328.48921516,0.00016618,2]
[404302133,1770048646761,-5382.0,0.00016618,2]
[404302134,1770048646771,-500.0,0.00016618,2]
[404302135,1770048646780,-150.0,0.00016618,2]
[404302136,1770048646790,-500.0,0.00016618,2]
[404302137,1770048646800,-500.0,0.00016618,2]
[404302138,1770048646809,-500.0,0.00016618,2]
[404302139,1770048646818,-242.0,0.00016618,2]
[404302140,1770048646827,-150.0,0.00016618,2]
[404302141,1770048646838,-500.0,0.00016618,2]
[404302142,1770048646847,-500.0,0.00016618,2]
[404302143,1770048646856,-203.40923612,0.00016618,2]
[404302144,1770048646865,-150.0,0.00016618,2]
[404302145,1770048646874,-500.0,0.00016618,2]
[404302146,1770048646883,-150.0,0.00016618,2]
[404302147,1770048646893,-500.0,0.00016618,2]
[404302148,1770048646903,-500.0,0.00016618,2]
[404302149,1770048646912,-233.51889341,0.00016625,2]
[404302150,1770048646921,-150.0,0.00016672,2]
[404302151,1770048646930,-5382.0,0.00016672,2]
[404302152,1770048646939,-500.0,0.00016672,2]
[404302153,1770048646949,-282.97813088,0.00016672,2]
[404302154,1770048646958,-500.0,0.00016672,2]
[404302155,1770048646967,-500.0,0.00016672,2]
[404302156,1770048646977,-500.0,0.00016672,2]
[404302157,1770048646986,-150.0,0.00016672,2]
[404302158,1770048646995,-500.0,0.00016672,2]
[404302159,1770048647004,-500.0,0.00016672,2]
[404302160,1770048647013,-150.0,0.00016672,2]
[404302161,1770048647023,-500.0,0.00016672,2]
[404302162,1770048647032,-500.0,0.00016672,2]
[404302163,1770048647041,-500.0,0.00016672,2]
[404302164,1770048647051,-242.15909246,0.0001668,2]
[404302165,1770048647060,-328.60535544,0.000167,2]
[404302166,1770048647069,-988.5,0.00016708,2]
[404302167,1770048647078,-595.4,0.00016712,2]
[404302168,1770048647088,-595.4,0.00016712,2]
[404302169,1770048647097,-595.4,0.00016712,2]
[404302170,1770048647106,-595.4,0.00016712,2]
[404302171,1770048647116,-595.59595269,0.00016712,2]
[404302172,1770048647125,-500.0,0.00016712,2]
[404302173,1770048647135,-509.63945804,0.00016712,2]
[404302174,1770048647144,-1060.96,0.00016712,2]
[404302175,1770048647154,-1060.96,0.00016712,2]
[404302176,1770048647163,-1060.96,0.00016712,2]
[404302177,1770048647173,-1060.96,0.00016712,2]
[404302178,1770048647182,-1060.97314617,0.00016712,2]
[404302179,1770048647191,-1017.42,0.00016712,2]
[404302180,1770048647200,-1017.42,0.00016712,2]
[404302181,1770048647209,-1017.42,0.00016712,2]
[404302182,1770048647218,-1017.42,0.00016712,2]
[404302183,1770048647227,-1017.42001855,0.00016712,2]
[404302184,1770048647236,-513.79,0.00016712,2]
[404302185,1770048647246,-513.79,0.00016712,2]
[404302186,1770048647255,-513.79,0.00016712,2]
[404302187,1770048647264,-513.79,0.00016712,2]
[404302188,1770048647273,-513.91503942,0.00016712,2]
[404302189,1770048647281,-520.18,0.00016712,2]
[404302190,1770048647291,-520.18,0.00016712,2]
[404302191,1770048647300,-520.18,0.00016712,2]
[404302192,1770048647309,-520.18,0.00016712,2]
[404302193,1770048647322,-520.24526317,0.00016712,2]
[404302194,1770048647331,-640.79,0.00016712,2]
[404302195,1770048647342,-640.79,0.00016712,2]
[404302196,1770048647351,-640.79,0.00016712,2]
[404302197,1770048647360,-640.79,0.00016712,2]
[404302198,1770048647370,-640.9535499,0.00016712,2]
[404302199,1770048647379,-500.0,0.00016712,2]
[404302200,1770048647388,-152.4,0.00016712,2]
[404302201,1770048647398,-736.0,0.00016716,2]
[404302202,1770048647407,-839.0,0.0001672,2]
[404302203,1770048647416,-839.0,0.0001672,2]
[404302204,1770048647426,-839.0,0.0001672,2]
[404302205,1770048647435,-163.0,0.0001672,2]
[404302206,1770048647444,-150.0,0.00016727,2]
[404302207,1770048647454,-5382.0,0.00016727,2]
[404302208,1770048647463,-500.0,0.00016727,2]
[404302209,1770048647473,-500.0,0.00016727,2]
[404302210,1770048647483,-500.0,0.00016727,2]
[404302211,1770048647492,-206.36581695,0.00016727,2]
[404302212,1770048647502,-150.0,0.00016727,2]
[404302213,1770048647511,-500.0,0.00016727,2]
[404302214,1770048647524,-500.0,0.00016727,2]
[404302215,1770048647534,-150.0,0.00016727,2]
[404302216,1770048647544,-354.76107445,0.00016727,2]
[404302217,1770048647553,-500.0,0.00016727,2]
[404302218,1770048647563,-500.0,0.00016727,2]
[404302219,1770048647574,-251.11897888,0.00016735,2]
[404302220,1770048647584,-207.91969894,0.00016782,2]
[404302221,1770048647594,-5382.0,0.00016782,2]
[404302222,1770048647604,-500.0,0.00016782,2]
[404302223,1770048647615,-284.33132432,0.00016782,2]
[404302224,1770048647624,-500.0,0.00016782,2]
[404302225,1770048647634,-250.0,0.00016782,2]
[404302226,1770048647644,-500.0,0.00016782,2]
[404302227,1770048647653,-500.0,0.00016782,2]
[404302228,1770048647663,-206.44868677,0.00016782,2]
[404302229,1770048647673,-500.0,0.00016782,2]
[404302230,1770048647683,-500.0,0.00016782,2]
[404302231,1770048647692,-260.4103811,0.0001679,2]
[404302232,1770048647702,-150.0,0.00016795,2]
[404302233,1770048647712,-5382.0,0.00016837,2]
[404302234,1770048647721,-500.0,0.00016837,2]
[404302235,1770048647733,-500.0,0.00016837,2]
[404302236,1770048647743,-500.0,0.00016837,2]
[404302237,1770048647752,-500.0,0.00016837,2]
[404302238,1770048647761,-500.0,0.00016837,2]
[404302239,1770048647770,-500.0,0.00016837,2]
[404302240,1770048647779,-270.0455652,0.00016845,2]
[404302241,1770048647788,-166.03286464,0.0001685,2]
[404302242,1770048647797,-2132.76,0.00016879,2]
[404302243,1770048647806,-5382.0,0.00016892,2]
[404302244,1770048647815,-200.0,0.00016892,2]
[404302245,1770048647824,-500.0,0.00016892,2]
[404302246,1770048647833,-500.0,0.00016892,2]
[404302247,1770048647844,-164.09024777,0.00016892,2]
[404302248,1770048647853,-280.03725112,0.000169,2]
[404302249,1770048647863,-2132.76,0.00016923,2]
[404302250,1770048647872,-397.04538678,0.00016927,2]
[404302251,1770048648211,-102.95461322,0.00016927,2]
[404302252,1770048648220,-159.65843549,0.00016927,2]
[404302253,1770048648229,-593.33695129,0.00016946,2]
[404302254,1770048648240,-4788.66304871,0.00016946,2]
[404302255,1770048648249,-500.0,0.00016946,2]
[404302256,1770048648259,-500.0,0.00016946,2]
[404302257,1770048648268,-290.39862941,0.00016955,2]
[404302258,1770048648277,-2132.76,0.00016967,2]
[404302259,1770048648286,-300.0,0.00017,2]
[404302260,1770048648296,-5000.0,0.00017,2]
[404302261,1770048648305,-3589.77832189,0.00017001,2]
[404302262,1770048648570,-384.73810332,0.00013698,2]
[404302263,1770048648583,-527.83,0.00013698,2]
[404302264,1770048648594,-527.83,0.00013698,2]
[404302265,1770048648604,-527.83,0.00013698,2]
[404302266,1770048648615,-527.83,0.00013698,2]
[404302267,1770048648624,-527.83,0.00013698,2]
[404302268,1770048648635,-527.83,0.00013698,2]
[404302269,1770048648646,-151.0,0.00015205,2]
[404302270,1770048648656,-151.0,0.00015205,2]
[404302271,1770048648667,-151.0,0.00015205,2]
[404302272,1770048648677,-650.96801133,0.00017001,2]
[404302273,1770048648689,-1141.25366678,0.00017001,2]
[404302274,1770048648700,-407.19311176,0.00017001,2]
[404302275,1770048648712,-92.80688824,0.00017001,2]
[404302276,1770048648722,-500.0,0.00017001,2]
[404302277,1770048648733,-1481.23780761,0.00017008,2]
[404302278,1770048648743,-217.15233878,0.00017008,2]
[404302279,1770048648753,-181.08010149,0.00017008,2]
[404302280,1770048648763,-277.94807481,0.00017008,2]
[404302281,1770048648774,-301.1433787,0.0001701,2]
[404302282,1770048648783,-2132.76,0.00017012,2]
[404302283,1770048648793,-5888.0,0.00017014,2]
[404302284,1770048648803,-300.0,0.00017021,2]
[404302285,1770048648814,-406.18335719,0.00017021,2]
[404302286,1770048648824,-522.8234433,0.00017021,2]
[404302287,1770048648834,-5888.0,0.00017033,2]
[404302288,1770048648844,-839.0,0.0001704,2]
[404302289,1770048648854,-5382.0,0.00017056,2]
[404302290,1770048648865,-500.0,0.00017056,2]
[404302291,1770048648875,-500.0,0.00017056,2]
[404302292,1770048648885,-2132.76,0.00017056,2]
[404302293,1770048648894,-534.26147743,0.000171,2]
[404302294,1770048648904,-5000.0,0.000171,2]
[404302295,1770048648914,-2132.76,0.00017101,2]
[404302296,1770048648924,-5382.0,0.00017111,2]
[404302297,1770048648934,-500.0,0.00017111,2]
[404302298,1770048648944,-418.13955353,0.00017111,2]
[404302299,1770048648954,-1000.0,0.00017112,2]
[404302300,1770048648964,-2000.0,0.00017116,2]
[404302301,1770048648974,-2000.0,0.00017116,2]
[404302302,1770048648983,-761.11407335,0.00017116,2]
[404302303,1770048648993,-2000.0,0.00017116,2]
[404302304,1770048649003,-500.0,0.00017139,2]
[404302305,1770048649014,-823.0,0.0001714,2]
[404302306,1770048649024,-2132.76,0.00017145,2]
[404302307,1770048649033,-154.62,0.00017148,2]
[404302308,1770048649043,-203.93,0.00017155,2]
[404302309,1770048649054,-5382.0,0.00017166,2]
[404302310,1770048649064,-500.0,0.00017166,2]
[404302311,1770048649074,-5888.0,0.00017188,2]
[404302312,1770048649083,-2132.76,0.00017189,2]
[404302313,1770048649095,-5000.0,0.000172,2]
[404302314,1770048649105,-5382.0,0.0001722,2]
[404302315,1770048649116,-150.0,0.0001722,2]
[404302316,1770048649126,-5888.0,0.00017221,2]
[404302317,1770048649135,-2132.76,0.00017234,2]
[404302318,1770048649145,-455.13,0.00017236,2]
[404302319,1770048649155,-360.54,0.00017236,2]
[404302320,1770048649166,-1000.0,0.0001726,2]
[404302321,1770048649176,-5888.0,0.00017265,2]
[404302322,1770048649185,-5382.0,0.00017275,2]
[404302323,1770048649196,-150.0,0.00017278,2]
[404302324,1770048649206,-2132.76,0.00017278,2]
[404302325,1770048649216,-17510.3478,0.00017287,2]
[404302326,1770048649225,-3292.0,0.00017296,2]
[404302327,1770048649235,-2132.76,0.00017323,2]
[404302328,1770048649244,-5382.0,0.0001733,2]
[404302329,1770048649254,-163.0,0.0001736,2]
[404302330,1770048649264,-839.0,0.0001736,2]
[404302331,1770048649274,-808.0,0.0001736,2]
[404302332,1770048649283,-2132.76,0.00017367,2]
[404302333,1770048649293,-275.02857155,0.0001738,2]
[404302334,1770048649303,-5382.0,0.00017385,2]
[404302335,1770048649313,-150.0,0.00017393,2]
[404302336,1770048649323,-1000.0,0.00017402,2]
[404302337,1770048649332,-2132.76,0.00017411,2]
[404302338,1770048649343,-5382.0,0.0001744,2]
[404302339,1770048649352,-2132.76,0.00017456,2]
[404302340,1770048649362,-150.0,0.00017456,2]
[404302341,1770048649372,-5888.0,0.0001747,2]
[404302342,1770048649382,-500.0,0.00017475,2]
[404302343,1770048649392,-150.0,0.00017491,2]
[404302344,1770048649402,-5382.0,0.00017494,2]
[404302345,1770048649412,-1000.0,0.00017497,2]
[404302346,1770048649422,-5000.0,0.000175,2]
[404302347,1770048649432,-2132.76,0.000175,2]
[404302348,1770048649443,-5888.0,0.00017526,2]
[404302349,1770048649453,-1000.0,0.00017534,2]
[404302350,1770048649463,-2132.76,0.00017545,2]
[404302351,1770048649473,-151.0,0.00017549,2]
[404302352,1770048649483,-151.0,0.00017549,2]
[404302353,1770048649493,-5382.0,0.00017549,2]
[404302354,1770048649503,-1536.04360649,0.00017556,2]
[404302355,1770048649513,-225.18697532,0.00017556,2]
[404302356,1770048649523,-187.78006525,0.00017556,2]
[404302357,1770048649533,-450.0,0.00017568,2]
[404302358,1770048649544,-159.65843549,0.00017578,2]
[404302359,1770048649554,-150.0,0.00017585,2]
[404302360,1770048649564,-2132.76,0.00017589,2]
[404302361,1770048649577,-5382.0,0.00017604,2]
[404302362,1770048649587,-200.0,0.00017604,2]
[404302363,1770048649597,-5888.0,0.00017628,2]
[404302364,1770048649607,-1000.0,0.00017629,2]
[404302365,1770048649618,-2132.76,0.00017634,2]
[404302366,1770048649628,-1018.97139211,0.0001764,2]
[404302367,1770048649638,-1084.9046937,0.0001764,2]
[404302368,1770048649648,-1035.88465738,0.0001764,2]
[404302369,1770048649658,-1149.68300185,0.0001764,2]
[404302370,1770048649668,-1013.84825619,0.0001764,2]
[404302371,1770048649678,-1100.92365651,0.0001764,2]
[404302372,1770048649688,-1085.7909208,0.0001764,2]
[404302373,1770048649698,-1062.89810448,0.0001764,2]
[404302374,1770048649708,-1918.94815528,0.0001764,2]
[404302375,1770048649718,-5382.0,0.00017659,2]
[404302376,1770048649729,-1250.14829239,0.00017664,2]
[404302377,1770048649739,-932.69026087,0.00017664,2]
[404302378,1770048649751,-2500.0,0.00017664,2]
[404302379,1770048649760,-2132.76,0.00017678,2]
[404302380,1770048649770,-1000.0,0.00017687,2]
[404302381,1770048649780,-1500.0,0.000177,2]
[404302382,1770048649790,-1000.0,0.00017709,2]
[404302383,1770048649800,-5382.0,0.00017713,2]
[404302384,1770048649810,-152.0,0.00017718,3]
[404302385,1770048649820,-200.0,0.00017721,2]
[404302386,1770048649830,-2132.76,0.00017722,2]
[404302387,1770048649841,-386.0,0.00017726,2]
[404302388,1770048649850,-381.0,0.00017738,2]
[404302389,1770048649860,-500.0,0.00017753,2]
[404302390,1770048649870,-150.0,0.00017768,2]
[404302391,1770048649880,-5405.0,0.00017768,2]
[404302392,1770048649891,-386.0,0.00017777,2]
[404302393,1770048649900,-880.50501347,0.000178,2]
[404302394,1770048649911,-500.0,0.00017808,2]
[404302395,1770048649921,-1000.0,0.00017808,2]
[404302396,1770048649931,-839.0,0.00017809,2]
[404302397,1770048649941,-386.0,0.00017812,2]
[404302398,1770048649951,-386.0,0.00017821,2]
[404302399,1770048649961,-5888.0,0.00017822,2]
[404302400,1770048649972,-334.5472959,0.00017829,2]
[404302401,1770048649982,-386.0,0.00017837,2]
[404302402,1770048649992,-200.0,0.00017856,2]
[404302403,1770048650002,-386.0,0.00017859,2]
[404302404,1770048650012,-299.74128292,0.00017861,2]
[404302405,1770048650022,-500.0,0.00017863,2]
[404302406,1770048650032,-386.0,0.00017869,2]
[404302407,1770048650043,-169.94,0.00017876,2]
[404302408,1770048650053,-381.0,0.00017878,2]
[404302409,1770048650063,-500.0,0.0001789,2]
[404302410,1770048650073,-500.0,0.000179,2]
[404302411,1770048650083,-534.26147743,0.000179,2]
[404302412,1770048650095,-328.60535544,0.000179,2]
[404302413,1770048650105,-205.83607011,0.000179,2]
[404302414,1770048650115,-2252.48906263,0.000179,2]
[404302415,1770048650126,-12947.0,0.000179,2]
[404302416,1770048650136,-257.7,0.00017905,2]
[404302417,1770048650145,-381.0,0.00017913,2]
[404302418,1770048650156,-500.0,0.00017918,2]
[404302419,1770048650166,-386.0,0.00017923,2]
[404302420,1770048650176,-381.0,0.00017924,2]
[404302421,1770048650186,-169.94,0.00017929,2]
[404302422,1770048650196,-371.0,0.00017939,2]
[404302423,1770048650206,-381.0,0.00017959,2]
[404302424,1770048650215,-5800.0,0.00017966,2]
[404302425,1770048650226,-500.0,0.0001797,2]
[404302426,1770048650236,-1000.0,0.0001797,2]
[404302427,1770048650246,-500.0,0.0001797,2]
[404302428,1770048650256,-1000.0,0.0001797,2]
[404302429,1770048650266,-600.0,0.0001797,2]
[404302430,1770048650276,-1000.0,0.0001797,2]
[404302431,1770048650286,-1000.0,0.0001797,2]
[404302432,1770048650296,-1000.0,0.0001797,2]
[404302433,1770048650306,-1000.0,0.0001797,2]
[404302434,1770048650316,-1050.00094472,0.0001797,2]
[404302435,1770048650326,-297.6689898,0.0001797,2]
[404302436,1770048650336,-339.85293807,0.0001797,2]
[404302437,1770048650346,-189.98558182,0.00017972,2]
[404302438,1770048650356,-546.08935447,0.00017972,2]
[404302439,1770048650366,-5800.0,0.00017975,2]
[404302440,1770048650376,-456.738324,0.00017977,2]
[404302441,1770048650386,-150.0,0.00017978,2]
[404302442,1770048650396,-150.0,0.00017981,2]
[404302443,1770048650406,-223.71282357,0.00017982,2]
[404302444,1770048650416,-5800.0,0.00017983,2]
[404302445,1770048650427,-317.19933946,0.00017988,2]
[404302446,1770048650437,-5800.0,0.00017992,2]
[404302447,1770048650447,-381.0,0.00017998,2]
[404302448,1770048650457,-123994.3310417,0.00017998,2]
[404302449,1770048650466,-1036.5441447,0.00017998,2]
[404302450,1770048650476,-18401.8221115,0.00017998,2]
[404302451,1770048650486,-185966.4388325,0.00017998,2]
[404302452,1770048650496,-152.959758,0.00017998,2]
[404302453,1770048650506,-151.0,0.00017998,2]
[404302454,1770048650516,-156.952904,0.00017998,2]
[404302455,1770048650526,-151.0,0.00017998,2]
[404302456,1770048650536,-151.0,0.00017998,2]
[404302457,1770048650547,-151.0,0.00017998,2]
[404302458,1770048650557,-151.0,0.00017998,2]
[404302459,1770048650567,-448.149135,0.00017998,2]
[404302460,1770048650581,-448.149135,0.00017998,2]
[404302461,1770048650593,-448.149135,0.00017998,2]
[404302462,1770048650603,-448.149135,0.00017998,2]
[404302463,1770048650613,-151.0,0.00017998,2]
[404302464,1770048650624,-163.698799,0.00017998,2]
[404302465,1770048650634,-151.0,0.00017998,2]
[404302466,1770048650645,-1243.191817,0.00017998,2]
[404302467,1770048650657,-151.0,0.00017998,2]
[404302468,1770048650918,-186016.5542925,0.00017998,2]
[404302469,1770048650928,-203.09061065,0.00017999,2]
[404302470,1770048650938,-300.0,0.00017999,2]
[404302471,1770048650948,-300.0,0.00017999,2]
[404302472,1770048650957,-300.0,0.00017999,2]
[404302473,1770048650967,-300.0,0.00017999,2]
[404302474,1770048650976,-300.0,0.00017999,2]
[404302475,1770048650985,-300.0,0.00017999,2]
[404302476,1770048650995,-666.0,0.00017999,2]
[404302477,1770048651004,-300.0,0.00017999,2]
[404302478,1770048651014,-300.0,0.00017999,2]
[404302479,1770048651024,-666.0,0.00017999,2]
[404302480,1770048651034,-300.0,0.00017999,2]
[404302481,1770048651045,-1357976.00847601,0.00018,2]
[404302482,1770048651060,-1009.64357999,0.00018,2]
[404302483,1770048651071,-655.28295906,0.00018,2]
[404302484,1770048651082,-300.0,0.00018,2]
[404302485,1770048651095,-920.86997726,0.00018,2]
[404302486,1770048651148,-527.83,0.00013698,2]
[404302487,1770048651158,-527.83,0.00013698,2]
[404302488,1770048651168,-3009.34,0.00018,2]
[404302489,1770048651188,-3751493.9096891,0.00018,2]
[404302490,1770048651198,-7500.35840853,0.00018,2]
[404302491,1770048651208,-109514.78915317,0.00018,2]
[404302492,1770048651217,-270461.63058707,0.00018,2]
[404302493,1770048651229,-532.31760081,0.00018,2]
[404302494,1770048651241,-364.40189523,0.00018,2]
[404302495,1770048651252,-277.9307743,0.00018,2]
[404302496,1770048651734,-1002.58729084,0.00012647,2]
[404302497,1770048651745,-18483.87454893,0.00012647,2]
[404302498,1770048651757,-22261.29816023,0.00012647,2]
[404302499,1770048651766,-527.83,0.00013698,2]
[404302500,1770048651776,-527.83,0.00013698,2]
[404302501,1770048651785,-527.83,0.00013698,2]
[404302502,1770048651795,-527.83,0.00016712,2]
[404302503,1770048651805,-527.83,0.00016712,2]
[404302504,1770048651814,-527.83,0.00016712,2]
[404302505,1770048651824,-527.83,0.00016712,2]
[404302506,1770048651833,-528.02714718,0.00016712,2]
[404302507,1770048651844,-690.75334192,0.000179,2]
[404302508,1770048651854,-346.96628676,0.000179,2]
[404302509,1770048651863,-973278.14282762,0.00018,2]
[404302510,1770048651878,-3180.40379597,0.00018,2]
[404302511,1770048651984,-2005.81885102,0.000173,2]
[404302512,1770048651995,-687.44571419,0.000173,2]
[404302513,1770048652007,-2306.73543479,0.000173,2]
[404302514,1770048652016,-21677.97388502,0.00018,2]
[404302515,1770048652028,-2563.77,0.00018,2]
[404302519,1770048819291,-500.0,0.00011982,2]
[404302520,1770048825926,171.05,0.00011249,2]
[404302521,1770048916302,5000.0,0.000155,3]
[404302522,1770048939016,5000.0,0.000155,3]
[404302523,1770048940319,328.95,0.00011233,2]